fUST/lending_fUST_20240912
["ID","MTS","AMOUNT","RATE_DAILY","PERIOD"]
[337817155,1726131052151,-248.606899,0.00016712,2]
[337817157,1726131052160,-500.0,0.00016712,2]
[337817159,1726131052169,-500.0,0.00016712,2]
[337817161,1726131052178,-373.35214471,0.00016712,2]
[337817163,1726131052189,-516.92,0.00016712,2]
[337817165,1726131052198,-500.0,0.00016712,2]
[337817167,1726131052208,-151.0,0.00016712,2]
[337817169,1726131052217,-720.11,0.00016712,2]
[337817171,1726131052227,-4891.15,0.00016712,2]
[337817173,1726131052236,-751.57,0.00016712,2]
[337817175,1726131052245,-500.0,0.00016712,2]
[337817177,1726131052256,-500.0,0.00016712,2]
[337817179,1726131052265,-504.42145327,0.00016712,2]
[337817181,1726131052275,-686.93,0.00016712,2]
[337817183,1726131052284,-1101.98,0.00016712,2]
[337817185,1726131052294,-500.0,0.00016712,2]
[337817187,1726131052303,-500.0,0.00016712,2]
[337817189,1726131052312,-500.0,0.00016712,2]
[337817192,1726131052322,-500.0,0.00016712,2]
[337817193,1726131052331,-500.0,0.00016712,2]
[337817195,1726131052341,-500.0,0.00016712,2]
[337817197,1726131052351,-500.0,0.00016712,2]
[337817200,1726131052360,-511.08714372,0.00016712,2]
[337817202,1726131052370,-500.0,0.00016712,2]
[337817204,1726131052380,-610.17,0.00016712,2]
[337817206,1726131052389,-500.0,0.00016712,2]
[337817208,1726131052399,-500.0,0.00016712,2]
[337817210,1726131052409,-500.0,0.00016712,2]
[337817212,1726131052418,-505.51201439,0.00016712,2]
[337817214,1726131052428,-338.53364805,0.00016712,2]
[337817216,1726131052437,-500.0,0.00016712,2]
[337817218,1726131052447,-500.0,0.00016712,2]
[337817220,1726131052457,-500.0,0.00016712,2]
[337817222,1726131052466,-670.2,0.00016712,2]
[337817224,1726131052476,-1053.58,0.00016712,2]
[337817226,1726131052485,-500.0,0.00016712,2]
[337817228,1726131052495,-3990.07,0.00016712,2]
[337817230,1726131052505,-500.0,0.00016712,2]
[337817232,1726131052515,-8996.43,0.00016712,2]
[337817234,1726131052526,-500.0,0.00016712,2]
[337817236,1726131052539,-500.0,0.00016712,2]
[337817238,1726131052549,-343.03527945,0.00016712,2]
[337817241,1726131052560,-500.0,0.00016712,2]
[337817243,1726131052569,-509.34,0.00016712,2]
[337817245,1726131052580,-500.0,0.00016712,2]
[337817247,1726131052590,-151.0,0.00016712,2]
[337817249,1726131052601,-1532.76,0.00016712,2]
[337817251,1726131052613,-10000.0,0.00016712,2]
[337817254,1726131052624,-551.17,0.00016712,2]
[337817256,1726131052636,-501.70450481,0.00016712,2]
[337817258,1726131052646,-500.0,0.00016712,2]
[337817260,1726131052657,-1009.79,0.00016712,2]
[337817262,1726131052667,-398.23419959,0.00016712,2]
[337817264,1726131052678,-10000.0,0.00016712,2]
[337817266,1726131052688,-500.0,0.00016712,2]
[337817268,1726131052697,-10000.0,0.00016712,2]
[337817270,1726131052706,-500.0,0.00016712,2]
[337817272,1726131052716,-10000.0,0.00016712,2]
[337817275,1726131052726,-500.0,0.00016712,2]
[337817276,1726131052735,-507.43323827,0.00016712,2]
[337817278,1726131052745,-513.87,0.00016712,2]
[337817281,1726131052755,-800.64,0.00016712,2]
[337817283,1726131052764,-935.62,0.00016712,2]
[337817285,1726131052776,-500.0,0.00016712,2]
[337817287,1726131052785,-500.0,0.00016712,2]
[337817289,1726131052795,-501.54398973,0.00016712,2]
[337817291,1726131052805,-659.81,0.00016712,2]
[337817293,1726131052815,-344.76624333,0.00016712,2]
[337817295,1726131052825,-500.0,0.00016712,2]
[337817297,1726131052834,-500.0,0.00016712,2]
[337817299,1726131052843,-500.0,0.00016712,2]
[337817301,1726131052853,-500.0,0.00016712,2]
[337817303,1726131052862,-500.0,0.00016712,2]
[337817305,1726131052871,-151.0,0.00016712,2]
[337817307,1726131052881,-500.0,0.00016712,2]
[337817309,1726131052890,-500.0,0.00016712,2]
[337817311,1726131052901,-500.0,0.00016712,2]
[337817313,1726131052911,-513.49213517,0.00016712,2]
[337817315,1726131052922,-151.0,0.00016712,2]
[337817317,1726131052934,-500.0,0.00016712,2]
[337817319,1726131052945,-500.0,0.00016712,2]
[337817322,1726131052956,-647.19344309,0.00016712,2]
[337817324,1726131052966,-500.0,0.00016712,2]
[337817326,1726131052976,-500.0,0.00016712,2]
[337817328,1726131052985,-500.0,0.00016712,2]
[337817330,1726131052996,-500.0,0.00016712,2]
[337817332,1726131053008,-500.0,0.00016712,2]
[337817334,1726131053018,-500.0,0.00016712,2]
[337817336,1726131053027,-618.89,0.00016712,2]
[337817338,1726131053036,-500.0,0.00016712,2]
[337817340,1726131053046,-500.0,0.00016712,2]
[337817342,1726131053057,-441.3783437,0.00016712,2]
[337817344,1726131053068,-548.57089672,0.00016712,2]
[337817346,1726131053078,-667.82,0.00016712,2]
[337817348,1726131053088,-500.0,0.00016712,2]
[337817350,1726131053098,-150.112235,0.000169,2]
[337817352,1726131053110,-500.0,0.00016973,2]
[337817354,1726131053120,-500.0,0.00016973,2]
[337817356,1726131053129,-500.0,0.00016973,2]
[337817358,1726131053140,-500.0,0.00016973,2]
[337817360,1726131053152,-203.52858684,0.00016973,2]
[337817362,1726131053163,-500.0,0.00016985,2]
[337817364,1726131053177,-500.0,0.00016985,2]
[337817366,1726131053188,-500.0,0.00016986,2]
[337817368,1726131053198,-256.69592048,0.00016986,2]
[337817370,1726131053207,-511.98379605,0.00016986,2]
[337817372,1726131053217,-500.0,0.00016986,2]
[337817374,1726131053226,-500.0,0.00016986,2]
[337817376,1726131053237,-500.0,0.00016986,2]
[337817378,1726131053247,-500.0,0.00016986,2]
[337817380,1726131053260,-639.0,0.00016986,2]
[337817382,1726131053269,-500.0,0.00016986,2]
[337817384,1726131053279,-500.0,0.00016986,2]
[337817386,1726131053289,-502.13593258,0.00016986,2]
[337817389,1726131053300,-500.0,0.00016986,2]
[337817391,1726131053310,-500.0,0.00016986,2]
[337817393,1726131053321,-492.05993453,0.00016986,2]
[337817395,1726131053332,-380.34198975,0.00016986,2]
[337817397,1726131053343,-500.0,0.00016986,2]
[337817399,1726131053354,-500.0,0.00016986,2]
[337817401,1726131053364,-500.0,0.00016986,2]
[337817404,1726131053375,-500.0,0.00016986,2]
[337817406,1726131053385,-500.0,0.00016986,2]
[337817408,1726131053395,-500.0,0.00016986,2]
[337817410,1726131053405,-500.0,0.00016986,2]
[337817412,1726131053417,-500.0,0.00016986,2]
[337817414,1726131053426,-500.0,0.00016986,2]
[337817416,1726131053436,-506.52986711,0.00016986,2]
[337817418,1726131053447,-500.0,0.00016986,2]
[337817420,1726131053457,-500.0,0.00016986,2]
[337817423,1726131053468,-500.0,0.00016986,2]
[337817425,1726131053478,-500.0,0.00016986,2]
[337817427,1726131053487,-500.0,0.00016986,2]
[337817429,1726131053497,-500.0,0.00016986,2]
[337817431,1726131053508,-500.0,0.00016986,2]
[337817433,1726131053517,-500.0,0.00016986,2]
[337817435,1726131053526,-200.0,0.00016986,2]
[337817437,1726131053536,-614.29,0.00016986,2]
[337817439,1726131053545,-500.0,0.00016986,2]
[337817441,1726131053554,-500.0,0.00016986,2]
[337817443,1726131053563,-500.0,0.00016986,2]
[337817445,1726131053573,-500.0,0.00016986,2]
[337817447,1726131053582,-500.0,0.00016986,2]
[337817449,1726131053591,-500.0,0.00016986,2]
[337817450,1726131053600,-536.87,0.00016986,2]
[337817451,1726131053609,-500.0,0.00016986,2]
[337817452,1726131053618,-152.06323289,0.00016986,2]
[337817453,1726131053627,-500.0,0.00016986,2]
[337817454,1726131053636,-500.0,0.00016986,2]
[337817455,1726131053646,-500.0,0.00016986,2]
[337817456,1726131053655,-500.0,0.00016986,2]
[337817457,1726131053665,-500.0,0.00016986,2]
[337817458,1726131053674,-817.17,0.00016986,2]
[337817459,1726131053683,-500.0,0.00016986,2]
[337817460,1726131053692,-506.66156285,0.00016986,2]
[337817461,1726131053701,-500.0,0.00016986,2]
[337817462,1726131053710,-500.0,0.00016986,2]
[337817463,1726131053719,-500.0,0.00016986,2]
[337817464,1726131053728,-500.0,0.00016986,2]
[337817465,1726131053737,-500.0,0.00016986,2]
[337817466,1726131053746,-500.0,0.00016986,2]
[337817467,1726131053757,-516.87,0.00016986,2]
[337817468,1726131053766,-500.0,0.00016986,2]
[337817469,1726131053775,-535.19,0.00016986,2]
[337817470,1726131053784,-500.0,0.00016986,2]
[337817471,1726131053793,-500.0,0.00016986,2]
[337817472,1726131053802,-617.64,0.00016986,2]
[337817473,1726131053850,-1279.9,0.00016986,2]
[337817474,1726131053859,-500.0,0.00016986,2]
[337817475,1726131053868,-500.0,0.00016986,2]
[337817476,1726131053878,-500.0,0.00016986,2]
[337817477,1726131053887,-793.33,0.00016986,2]
[337817478,1726131053896,-500.0,0.00016986,2]
[337817479,1726131053906,-500.0,0.00016986,2]
[337817480,1726131053916,-500.0,0.00016986,2]
[337817481,1726131053926,-500.0,0.00016986,2]
[337817482,1726131053936,-500.0,0.00016986,2]
[337817483,1726131053945,-500.0,0.00016986,2]
[337817484,1726131053955,-500.0,0.00016986,2]
[337817485,1726131053964,-500.0,0.00016986,2]
[337817486,1726131053973,-500.0,0.00016986,2]
[337817487,1726131053982,-500.0,0.00016986,2]
[337817488,1726131053991,-500.0,0.00016986,2]
[337817489,1726131054000,-500.0,0.00016986,2]
[337817490,1726131054009,-507.71566468,0.00016986,2]
[337817491,1726131054020,-500.0,0.00016986,2]
[337817492,1726131054029,-500.0,0.00016986,2]
[337817493,1726131054038,-500.0,0.00016986,2]
[337817494,1726131054047,-500.0,0.00016986,2]
[337817495,1726131054056,-538.76,0.00016986,2]
[337817496,1726131054065,-500.0,0.00016986,2]
[337817497,1726131054074,-500.0,0.00016986,2]
[337817498,1726131054083,-500.0,0.00016986,2]
[337817499,1726131054093,-500.0,0.00016986,2]
[337817500,1726131054105,-500.0,0.00016986,2]
[337817501,1726131054114,-500.0,0.00016986,2]
[337817502,1726131054124,-157.330492,0.00016986,2]
[337817503,1726131054132,-500.0,0.00016986,2]
[337817504,1726131054141,-500.0,0.00016986,2]
[337817505,1726131054151,-599.07,0.00016986,2]
[337817506,1726131054160,-151.0,0.00016986,2]
[337817507,1726131054168,-594.71,0.00016986,2]
[337817508,1726131054178,-500.0,0.00016986,2]
[337817509,1726131054187,-500.0,0.00016986,2]
[337817510,1726131054195,-500.0,0.00016986,2]
[337817511,1726131054204,-500.0,0.00016986,2]
[337817512,1726131054213,-302.45631,0.00016986,2]
[337817513,1726131054222,-165.09799226,0.00016986,2]
[337817514,1726131054231,-302.45631,0.00016986,2]
[337817515,1726131054240,-745.01,0.00016986,2]
[337817516,1726131054250,-517.18537564,0.00016986,2]
[337817517,1726131054259,-580.85,0.00016986,2]
[337817518,1726131054268,-500.0,0.00016986,2]
[337817519,1726131054278,-151.0,0.00016986,2]
[337817520,1726131054288,-621.73,0.00016986,2]
[337817521,1726131054297,-500.0,0.00016986,2]
[337817522,1726131054307,-500.0,0.00016986,2]
[337817523,1726131054316,-601.07,0.00016986,2]
[337817524,1726131054325,-500.0,0.00016986,2]
[337817525,1726131054334,-500.0,0.00016986,2]
[337817526,1726131054343,-779.69,0.00016986,2]
[337817527,1726131054353,-500.0,0.00016986,2]
[337817528,1726131054363,-500.0,0.00016986,2]
[337817529,1726131054373,-151.0,0.00016986,2]
[337817530,1726131054383,-506.14,0.00016986,2]
[337817531,1726131054394,-436.86837749,0.00016986,2]
[337817532,1726131054404,-151.0,0.00016986,2]
[337817533,1726131054413,-500.0,0.00016986,2]
[337817534,1726131054423,-151.0,0.00016986,2]
[337817535,1726131054435,-500.0,0.00016986,2]
[337817536,1726131054445,-253.14116381,0.00016986,2]
[337817537,1726131054457,-635.867684,0.00016986,2]
[337817538,1726131054469,-500.0,0.00016986,2]
[337817539,1726131054479,-697.699414,0.00016986,2]
[337817540,1726131054489,-500.0,0.00016986,2]
[337817541,1726131054498,-424.60231875,0.00016986,2]
[337817542,1726131054508,-635.867684,0.00016986,2]
[337817543,1726131054518,-500.0,0.00016986,2]
[337817544,1726131054528,-697.699414,0.00016986,2]
[337817545,1726131054538,-500.0,0.00016986,2]
[337817546,1726131054550,-501.38940008,0.00016986,2]
[337817547,1726131054560,-500.0,0.00016986,2]
[337817548,1726131054572,-1433.25141,0.00016986,2]
[337817549,1726131054583,-500.0,0.00016986,2]
[337817550,1726131054594,-1116.841641,0.00016986,2]
[337817551,1726131054606,-500.0,0.00016986,2]
[337817552,1726131054616,-500.0,0.00016986,2]
[337817553,1726131054625,-1116.841641,0.00016986,2]
[337817554,1726131054635,-151.0,0.00016986,2]
[337817555,1726131054644,-500.0,0.00016986,2]
[337817556,1726131054654,-500.0,0.00016986,2]
[337817557,1726131054665,-151.0,0.00016986,2]
[337817558,1726131054674,-500.0,0.00016986,2]
[337817559,1726131054684,-151.0,0.00016986,2]
[337817560,1726131054694,-500.0,0.00016986,2]
[337817561,1726131054705,-1106.33,0.00016986,2]
[337817562,1726131054714,-500.0,0.00016986,2]
[337817563,1726131054724,-500.0,0.00016986,2]
[337817564,1726131054733,-151.0,0.00016986,2]
[337817565,1726131054743,-151.450246,0.00016986,2]
[337817566,1726131054753,-500.0,0.00016986,2]
[337817567,1726131054762,-500.0,0.00016986,2]
[337817568,1726131054771,-500.0,0.00016986,2]
[337817569,1726131054781,-500.0,0.00016986,2]
[337817570,1726131054790,-164.41186863,0.00016986,2]
[337817571,1726131054800,-500.0,0.00016986,2]
[337817572,1726131054809,-211.419149,0.00016986,2]
[337817573,1726131054818,-502.36175348,0.00016986,2]
[337817574,1726131054827,-500.0,0.00016986,2]
[337817575,1726131054837,-500.0,0.00016986,2]
[337817576,1726131054847,-502.13506741,0.00016986,2]
[337817577,1726131054856,-211.419149,0.00016986,2]
[337817578,1726131054866,-500.0,0.00016986,2]
[337817579,1726131054875,-500.0,0.00016986,2]
[337817580,1726131054885,-292.12437783,0.00016986,2]
[337817581,1726131054894,-500.0,0.00016986,2]
[337817582,1726131054904,-1034.906807,0.00016986,2]
[337817583,1726131054913,-1034.906807,0.00016986,2]
[337817584,1726131054923,-500.0,0.00016986,2]
[337817585,1726131054933,-151.0,0.00016986,2]
[337817586,1726131054943,-500.0,0.00016986,2]
[337817587,1726131054954,-151.0,0.00016986,2]
[337817588,1726131054964,-509.65392536,0.00016986,2]
[337817589,1726131054974,-500.0,0.00016986,2]
[337817590,1726131054984,-472.28217327,0.00016986,2]
[337817591,1726131054995,-500.0,0.00016986,2]
[337817592,1726131055004,-500.0,0.00016986,2]
[337817593,1726131055013,-500.0,0.00016986,2]
[337817594,1726131055023,-500.0,0.00016986,2]
[337817595,1726131055031,-500.0,0.00016986,2]
[337817596,1726131055041,-151.0,0.00016986,2]
[337817597,1726131055049,-500.0,0.00016986,2]
[337817598,1726131055058,-500.0,0.00016986,2]
[337817599,1726131055067,-500.0,0.00016986,2]
[337817600,1726131055077,-500.0,0.00016986,2]
[337817601,1726131055086,-408.480547,0.00016986,2]
[337817602,1726131055096,-500.0,0.00016986,2]
[337817603,1726131055108,-567.35108844,0.00016986,2]
[337817604,1726131055117,-500.0,0.00016986,2]
[337817605,1726131055126,-408.480547,0.00016986,2]
[337817606,1726131055136,-843.199947,0.00016986,2]
[337817607,1726131055145,-843.199947,0.00016986,2]
[337817608,1726131055154,-500.0,0.00016986,2]
[337817609,1726131055163,-151.0,0.00016986,2]
[337817610,1726131055172,-170.21585539,0.00016986,2]
[337817611,1726131055181,-500.0,0.00016986,2]
[337817612,1726131055191,-500.0,0.00016986,2]
[337817613,1726131055200,-500.0,0.00016986,2]
[337817614,1726131055209,-500.0,0.00016986,2]
[337817615,1726131055218,-369.4811855,0.00016986,2]
[337817616,1726131055228,-500.0,0.00016986,2]
[337817617,1726131055237,-500.0,0.00016986,2]
[337817618,1726131055246,-151.0,0.00016986,2]
[337817619,1726131055256,-500.0,0.00016986,2]
[337817620,1726131055266,-760.99,0.00016986,2]
[337817621,1726131055276,-500.0,0.00016986,2]
[337817622,1726131055285,-762.35,0.00016986,2]
[337817623,1726131055295,-504.24200121,0.00016986,2]
[337817624,1726131055304,-500.0,0.00016986,2]
[337817625,1726131055313,-500.0,0.00016986,2]
[337817626,1726131055323,-500.0,0.00016986,2]
[337817627,1726131055332,-500.0,0.00016986,2]
[337817628,1726131055342,-738.28,0.00016986,2]
[337817629,1726131055351,-500.0,0.00016986,2]
[337817630,1726131055360,-500.0,0.00016986,2]
[337817631,1726131055370,-500.0,0.00016986,2]
[337817632,1726131055379,-500.0,0.00016986,2]
[337817633,1726131055388,-500.0,0.00016986,2]
[337817634,1726131055398,-500.0,0.00016986,2]
[337817635,1726131055407,-451.13151373,0.00016986,2]
[337817636,1726131055416,-500.0,0.00016986,2]
[337817637,1726131055426,-7681.4,0.00016986,2]
[337817638,1726131055435,-500.0,0.00016986,2]
[337817639,1726131055444,-613.21,0.00016986,2]
[337817640,1726131055453,-500.0,0.00016986,2]
[337817641,1726131055463,-511.72419072,0.00016986,2]
[337817642,1726131055471,-500.0,0.00016986,2]
[337817643,1726131055481,-500.0,0.00016986,2]
[337817644,1726131055490,-500.0,0.00016986,2]
[337817645,1726131055499,-641.6,0.00016986,2]
[337817646,1726131055509,-500.0,0.00016986,2]
[337817647,1726131055518,-500.0,0.00016986,2]
[337817648,1726131055527,-500.0,0.00016986,2]
[337817649,1726131055537,-340.12942007,0.00016986,2]
[337817650,1726131055546,-500.0,0.00016986,2]
[337817651,1726131055555,-500.0,0.00016986,2]
[337817652,1726131055564,-500.0,0.00016986,2]
[337817653,1726131055574,-288.53,0.00016986,2]
[337817654,1726131055583,-500.0,0.00016986,2]
[337817655,1726131055592,-697.579169,0.00016986,2]
[337817656,1726131055602,-291.43371116,0.00016986,2]
[337817657,1726131055612,-151.0,0.00016986,2]
[337817658,1726131055622,-500.0,0.00016986,2]
[337817659,1726131055633,-715.52,0.00016986,2]
[337817660,1726131055645,-151.0,0.00016986,2]
[337817661,1726131055656,-500.0,0.00016986,2]
[337817662,1726131055667,-500.0,0.00016986,2]
[337817663,1726131055678,-582.64,0.00016986,2]
[337817664,1726131055689,-559.53,0.00016986,2]
[337817665,1726131055699,-697.579169,0.00016986,2]
[337817666,1726131055710,-592.34,0.00016986,2]
[337817667,1726131055723,-500.0,0.00016986,2]
[337817668,1726131055734,-500.0,0.00016986,2]
[337817669,1726131055745,-500.0,0.00016986,2]
[337817670,1726131055757,-502.80020864,0.00016986,2]
[337817671,1726131055773,-500.0,0.00016986,2]
[337817672,1726131055783,-500.0,0.00016986,2]
[337817673,1726131055794,-151.0,0.00016986,2]
[337817674,1726131055806,-629.47,0.00016986,2]
[337817675,1726131055817,-500.0,0.00016986,2]
[337817676,1726131055829,-500.0,0.00016986,2]
[337817677,1726131055840,-500.0,0.00016986,2]
[337817678,1726131055850,-500.0,0.00016986,2]
[337817679,1726131055862,-500.0,0.00016986,2]
[337817680,1726131055872,-500.0,0.00016986,2]
[337817681,1726131055882,-500.0,0.00016986,2]
[337817682,1726131055893,-500.0,0.00016986,2]
[337817683,1726131055904,-606.50059161,0.00016986,2]
[337817684,1726131055915,-500.0,0.00016986,2]
[337817685,1726131055925,-500.0,0.00016986,2]
[337817686,1726131055936,-167.5102,0.00016986,2]
[337817687,1726131055946,-500.0,0.00016986,2]
[337817688,1726131055955,-500.0,0.00016986,2]
[337817689,1726131055966,-500.0,0.00016986,2]
[337817690,1726131055975,-500.0,0.00016986,2]
[337817691,1726131055984,-500.0,0.00016986,2]
[337817692,1726131055995,-500.0,0.00016986,2]
[337817693,1726131056010,-500.0,0.00016986,2]
[337817694,1726131056020,-500.0,0.00016986,2]
[337817695,1726131056031,-500.0,0.00016986,2]
[337817696,1726131056041,-500.0,0.00016986,2]
[337817697,1726131056051,-653.34,0.00016986,2]
[337817698,1726131056061,-409.35559752,0.00016986,2]
[337817699,1726131056072,-5916.495582,0.00016986,2]
[337817700,1726131056083,-567.95,0.00016986,2]
[337817701,1726131056094,-500.0,0.00016986,2]
[337817702,1726131056104,-510.81588199,0.00016986,2]
[337817703,1726131056113,-500.0,0.00016986,2]
[337817704,1726131056123,-546.7709716,0.00016986,2]
[337817705,1726131056133,-675.38,0.00016986,2]
[337817706,1726131056144,-500.0,0.00016986,2]
[337817707,1726131056155,-5916.495582,0.00016986,2]
[337817708,1726131056166,-807.1,0.00016986,2]
[337817709,1726131056177,-787.31,0.00016986,2]
[337817710,1726131056187,-500.0,0.00016986,2]
[337817711,1726131056196,-500.0,0.00016986,2]
[337817712,1726131056206,-500.0,0.00016986,2]
[337817713,1726131056215,-500.0,0.00016986,2]
[337817714,1726131056225,-500.0,0.00016986,2]
[337817715,1726131056237,-500.0,0.00016986,2]
[337817716,1726131056247,-1393.23,0.00016986,2]
[337817717,1726131056258,-500.0,0.00016986,2]
[337817718,1726131056267,-181.15,0.00016986,2]
[337817719,1726131056276,-500.0,0.00016986,2]
[337817720,1726131056286,-500.0,0.00016986,2]
[337817721,1726131056295,-734.5,0.00016986,2]
[337817722,1726131056305,-541.1,0.00016986,2]
[337817723,1726131056316,-500.0,0.00016986,2]
[337817724,1726131056326,-500.0,0.00016986,2]
[337817725,1726131056335,-500.0,0.00016986,2]
[337817726,1726131056346,-719.64,0.00016986,2]
[337817727,1726131056359,-690.44,0.00016986,2]
[337817728,1726131056368,-500.0,0.00016986,2]
[337817729,1726131056378,-427.58,0.00016986,2]
[337817730,1726131056387,-199.62271358,0.00016986,2]
[337817731,1726131056397,-862.19,0.00016986,2]
[337817732,1726131056409,-500.0,0.00016986,2]
[337817733,1726131056419,-151.0,0.00016986,2]
[337817734,1726131056430,-500.0,0.00016986,2]
[337817735,1726131056439,-516.92,0.00016986,2]
[337817736,1726131056449,-500.0,0.00016986,2]
[337817737,1726131056459,-151.0,0.00016986,2]
[337817738,1726131056468,-720.11,0.00016986,2]
[337817739,1726131056478,-4891.15,0.00016986,2]
[337817740,1726131056488,-751.57,0.00016986,2]
[337817741,1726131056498,-500.0,0.00016986,2]
[337817742,1726131056509,-500.0,0.00016986,2]
[337817743,1726131056519,-686.93,0.00016986,2]
[337817744,1726131056530,-1101.98,0.00016986,2]
[337817745,1726131056540,-500.0,0.00016986,2]
[337817746,1726131056550,-500.0,0.00016986,2]
[337817747,1726131056560,-500.0,0.00016986,2]
[337817748,1726131056570,-500.0,0.00016986,2]
[337817749,1726131056580,-500.0,0.00016986,2]
[337817750,1726131056591,-500.0,0.00016986,2]
[337817751,1726131056601,-500.0,0.00016986,2]
[337817752,1726131056612,-500.0,0.00016986,2]
[337817753,1726131056622,-610.17,0.00016986,2]
[337817754,1726131056634,-500.0,0.00016986,2]
[337817755,1726131056645,-500.0,0.00016986,2]
[337817756,1726131056655,-604.08212214,0.00016986,2]
[337817757,1726131056665,-500.0,0.00016986,2]
[337817758,1726131056677,-523.72515869,0.00016986,2]
[337817759,1726131056688,-670.2,0.00016986,2]
[337817760,1726131056698,-1053.58,0.00016986,2]
[337817761,1726131056709,-500.0,0.00016986,2]
[337817762,1726131056722,-3990.07,0.00016986,2]
[337817763,1726131056731,-500.0,0.00016986,2]
[337817764,1726131056742,-8996.43,0.00016986,2]
[337817765,1726131056751,-500.0,0.00016986,2]
[337817766,1726131056763,-500.0,0.00016986,2]
[337817767,1726131056773,-500.0,0.00016986,2]
[337817768,1726131056783,-500.0,0.00016986,2]
[337817769,1726131056792,-151.0,0.00016986,2]
[337817770,1726131056804,-1532.76,0.00016986,2]
[337817771,1726131056815,-10000.0,0.00016986,2]
[337817772,1726131056828,-551.17,0.00016986,2]
[337817773,1726131056838,-502.54879552,0.00016986,2]
[337817774,1726131056848,-1009.79,0.00016986,2]
[337817775,1726131056857,-10000.0,0.00016986,2]
[337817776,1726131056867,-500.0,0.00016986,2]
[337817777,1726131056876,-10000.0,0.00016986,2]
[337817778,1726131056885,-500.0,0.00016986,2]
[337817779,1726131056894,-10000.0,0.00016986,2]
[337817780,1726131056905,-500.0,0.00016986,2]
[337817781,1726131056915,-513.87,0.00016986,2]
[337817782,1726131056926,-800.64,0.00016986,2]
[337817783,1726131056936,-935.62,0.00016986,2]
[337817784,1726131056945,-500.0,0.00016986,2]
[337817785,1726131056955,-500.0,0.00016986,2]
[337817786,1726131056967,-659.81,0.00016986,2]
[337817787,1726131056976,-4000.0,0.00016986,2]
[337817788,1726131056988,-4000.0,0.00016986,2]
[337817789,1726131056998,-500.0,0.00016986,2]
[337817790,1726131057010,-4000.0,0.00016986,2]
[337817791,1726131057021,-4000.0,0.00016986,2]
[337817792,1726131057031,-4000.0,0.00016986,2]
[337817793,1726131057040,-4000.0,0.00016986,2]
[337817794,1726131057050,-4000.0,0.00016986,2]
[337817795,1726131057060,-4110.334962,0.00016986,2]
[337817796,1726131057070,-500.0,0.00016986,2]
[337817797,1726131057081,-500.0,0.00016986,2]
[337817798,1726131057091,-153.750124,0.00016986,2]
[337817799,1726131057103,-534.42230829,0.00016986,2]
[337817800,1726131057113,-151.0,0.00016986,2]
[337817801,1726131057123,-500.0,0.00016986,2]
[337817802,1726131057134,-500.0,0.00016986,2]
[337817803,1726131057143,-500.0,0.00016986,2]
[337817804,1726131057153,-500.0,0.00016986,2]
[337817805,1726131057164,-500.0,0.00016986,2]